bitfinex/quotes_SOLUSD_20250310
["timestamp","ask_amount","ask_price","bid_price","bid_amount"]
[1741594787593,0.28432314,128.32,128.28,31.55995891]
[1741594788391,0.28432314,128.32,128.29,23.76465891]
[1741594788694,0.28432314,128.32,128.3,23.76465891]
[1741594789287,0.28432314,128.32,128.3,7.7938]
[1741594790094,0.28432314,128.32,128.3,31.55845891]
[1741594793306,0.28432314,128.32,128.29,31.55935891]
[1741594793667,0.28432314,128.32,128.3,23.76465891]
[1741594795031,0.28432314,128.32,128.3,31.55845891]
[1741594796637,0.14216157,128.35,128.31,23.76465891]
[1741594796804,0.14216157,128.37,128.34,23.76465891]
[1741594796999,0.14216157,128.37,128.35,23.76465891]
[1741594797232,0.20516157,128.4,128.36,23.76465891]
[1741594797451,0.14216157,128.39,128.37,23.76465891]
[1741594797619,0.14216157,128.39,128.36,23.76465891]
[1741594798723,0.14216157,128.39,128.33,156.1259]
[1741594798724,0.14216157,128.37,128.35,23.76465891]
[1741594799728,0.14216157,128.37,128.33,179.89055891]
[1741594799903,18.79181043,128.36,128.33,154.5]
[1741594800107,0.14216157,128.35,128.33,154.5]
[1741594800304,0.14216157,128.35,128.32,23.76465891]
[1741594800508,18.79181043,128.36,128.33,23.76465891]
[1741594800509,0.14216157,128.36,128.33,23.76465891]
[1741594800821,0.28432314,128.34,128.3,25.26625891]
[1741594801024,0.28432314,128.34,128.31,23.76465891]
[1741594801532,0.28432314,128.34,128.3,23.76465891]
[1741594801731,0.28432314,128.32,128.29,23.76465891]
[1741594802028,0.28432314,128.32,128.3,23.76465891]
[1741594802322,0.28432314,128.34,128.3,23.76465891]
[1741594802521,0.28432314,128.34,128.33,23.76465891]
[1741594802736,0.14216157,128.34,128.33,23.76465891]
[1741594803025,18.85481043,128.37,128.33,23.76465891]
[1741594803026,0.14216157,128.36,128.33,23.76465891]
[1741594803234,0.14216157,128.33,128.3,23.76465891]
[1741594803412,0.14216157,128.34,128.31,23.76465891]
[1741594804026,0.14216157,128.34,128.3,23.76465891]
[1741594804907,0.14216157,128.34,128.31,23.76465891]
[1741594805538,0.28432314,128.35,128.33,23.76465891]
[1741594805721,0.14216157,128.35,128.34,23.76465891]
[1741594806320,0.28432314,128.36,128.32,29.87225891]
[1741594806634,18.933972,128.36,128.31,23.76465891]
[1741594806822,42.69863091,128.36,128.31,23.76465891]
[1741594807030,50.48933091,128.36,128.31,23.76465891]
[1741594807713,18.933972,128.36,128.32,23.76465891]
[1741594808025,0.28432314,128.36,128.32,23.76465891]
[1741594809138,8.07492314,128.36,128.32,23.76465891]
[1741594809508,0.14216157,128.36,128.34,23.76465891]
[1741594809709,0.063,128.37,128.35,23.76465891]
[1741594811518,0.063,128.37,128.35,31.55565891]
[1741594812042,0.063,128.37,128.36,23.76465891]
[1741594812240,0.063,128.37,128.36,37.95630052]
[1741594812817,0.063,128.4,128.36,37.95630052]
[1741594813117,0.063,128.4,128.37,37.95630052]
[1741594813430,0.063,128.4,128.35,37.95630052]
[1741594813431,0.063,128.37,128.35,37.95630052]
[1741594813630,0.063,128.37,128.33,1.5216]
[1741594813835,0.34732314,128.37,128.33,1.5216]
[1741594814137,0.34732314,128.37,128.34,37.95630052]
[1741594814346,0.34732314,128.37,128.33,37.95630052]
[1741594814826,0.34732314,128.37,128.34,37.95630052]
[1741594815344,0.20516157,128.37,128.34,37.95630052]
[1741594815523,0.063,128.37,128.36,37.95630052]
[1741594817521,0.063,128.37,128.36,45.74680052]
[1741594818628,0.063,128.37,128.36,51.82650052]
[1741594819451,0.063,128.37,128.36,44.03600052]
[1741594819625,0.063,128.37,128.36,51.82650052]
[1741594819828,0.063,128.37,128.36,44.03600052]
[1741594820647,0.063,128.37,128.36,51.82650052]
[1741594820948,0.063,128.4,128.36,225.80290052]
[1741594821129,0.063,128.4,128.39,37.95630052]
[1741594821330,0.063,128.4,128.39,45.74500052]
[1741594821726,0.063,128.4,128.37,7.7897]
[1741594821947,0.063,128.4,128.39,37.95630052]
[1741594822146,0.063,128.4,128.38,37.95630052]
[1741594822842,0.28432314,128.39,128.35,37.95630052]
[1741594823155,0.28432314,128.39,128.36,37.95630052]
[1741594823452,8.07322314,128.39,128.36,37.95630052]
[1741594823749,0.28432314,128.37,128.34,37.95630052]
[1741594824947,0.28432314,128.37,128.36,0.03]
[1741594825630,26.723872,128.37,128.36,0.03]
[1741594826530,18.933972,128.37,128.36,0.03]
[1741594826740,0.14216157,128.38,128.36,37.98630052]
[1741594827129,0.28432314,128.38,128.36,37.98630052]
[1741594827439,0.28432314,128.38,128.36,0.03]
[1741594828145,64.67967252,128.38,128.36,0.03]
[1741594828339,139.29027252,128.37,128.36,0.03]
[1741594828551,56.89027252,128.37,128.36,0.03]
[1741594829644,64.68017252,128.37,128.36,0.03]
[1741594830562,18.933972,128.37,128.36,0.03]
[1741594832747,0.28432314,128.37,128.36,0.03]
[1741594833458,8.07422314,128.37,128.36,0.03]
[1741594834057,50.18073092,128.38,128.36,0.03]
[1741594834255,25.723472,128.38,128.36,0.03]
[1741594834652,49.46505406,128.38,128.36,0.03]
[1741594835359,25.723472,128.38,128.36,0.03]
[1741594835671,17.933972,128.38,128.36,0.03]
[1741594836164,0.14216157,128.37,128.36,0.03]
[1741594837656,31.8788052,128.37,128.36,0.03]
[1741594838538,8.13722314,128.37,128.36,0.03]
[1741594839054,50.52845406,128.37,128.36,0.03]
[1741594839661,26.786872,128.37,128.36,0.03]
[1741594841171,50.52845406,128.37,128.36,0.03]
[1741594842251,0.28432314,128.33,128.28,25.37868206]
[1741594842459,23.74158206,128.3,128.27,0.03]
[1741594842774,0.14216157,128.31,128.27,23.77158206]
[1741594842975,0.14216157,128.31,128.28,23.74158206]
[1741594843155,0.14216157,128.31,128.27,0.03]
[1741594843358,0.28432314,128.31,128.27,0.03]
[1741594843563,18.933972,128.31,128.28,23.74158206]
[1741594844073,18.64964886,128.34,128.3,23.74158206]
[1741594844276,18.64964886,128.34,128.33,23.74158206]
[1741594844277,0.14216157,128.34,128.33,23.74158206]
[1741594844964,0.14216157,128.35,128.33,23.74158206]
[1741594845161,0.14216157,128.35,128.34,23.74158206]
[1741594845573,0.14216157,128.36,128.34,31.53338206]
[1741594845772,0.14216157,128.36,128.35,23.74158206]
[1741594845980,18.996972,128.37,128.34,23.74158206]
[1741594846167,50.52855406,128.37,128.32,23.74158206]
[1741594846375,64.78394274,128.37,128.32,37.99697074]
[1741594846577,64.78394274,128.37,128.31,39.65597074]
[1741594846973,64.78394274,128.37,128.32,37.99697074]
[1741594847278,18.933972,128.35,128.31,37.99697074]
[1741594847472,0.14216157,128.33,128.28,7.7952]
[1741594847676,0.14216157,128.34,128.31,37.99697074]
[1741594847978,0.14216157,128.34,128.3,37.99697074]
[1741594848182,0.14216157,128.34,128.31,37.99697074]
[1741594848860,0.14216157,128.34,128.33,37.99697074]
[1741594849068,0.20516157,128.37,128.33,37.99697074]
[1741594849266,0.20516157,128.37,128.34,37.99697074]
[1741594849459,0.20516157,128.37,128.33,37.99697074]
[1741594849781,0.14216157,128.34,128.31,37.99697074]
[1741594849983,0.14216157,128.34,128.33,37.99697074]
[1741594850281,82.60516157,128.37,128.33,37.99697074]
[1741594850590,18.996972,128.37,128.34,37.99697074]
[1741594851084,0.20516157,128.37,128.35,37.99697074]
[1741594851471,0.20516157,128.37,128.34,37.99697074]
[1741594851775,7.99516157,128.37,128.34,37.99697074]
[1741594851976,0.14216157,128.35,128.32,37.99697074]
[1741594852276,0.14216157,128.33,128.31,0.03]
[1741594853181,0.14216157,128.33,128.31,38.02697074]
[1741594853485,0.14216157,128.33,128.31,45.82047074]
[1741594853673,7.853,128.37,128.31,45.82047074]
[1741594853674,0.063,128.37,128.32,37.99697074]
[1741594853882,0.14216157,128.36,128.34,37.99697074]
[1741594854493,18.85481043,128.37,128.35,37.99697074]
[1741594854494,0.063,128.37,128.35,37.99697074]
[1741594854781,0.063,128.37,128.36,37.99697074]
[1741594855567,0.063,128.37,128.35,37.99697074]
[1741594855973,0.063,128.37,128.35,45.78807074]
[1741594856366,0.063,128.37,128.35,37.99697074]
[1741594857191,18.79181043,128.36,128.32,37.99697074]
[1741594857565,0.14216157,128.36,128.32,37.99697074]
[1741594858187,7.93296157,128.36,128.32,37.99697074]
[1741594858395,7.93296157,128.36,128.32,45.78987074]
[1741594858686,0.14216157,128.36,128.32,45.78987074]
[1741594858885,0.14216157,128.36,128.33,37.99697074]
[1741594859590,0.14216157,128.36,128.34,37.99697074]
[1741594859887,0.063,128.37,128.34,37.99697074]
[1741594860187,0.063,128.37,128.35,37.99697074]
[1741594860383,0.063,128.37,128.35,45.78807074]
[1741594861184,0.063,128.37,128.35,37.99697074]
[1741594861670,0.063,128.37,128.35,45.78797074]
[1741594862188,0.063,128.37,128.36,37.99697074]
[1741594862389,0.063,128.4,128.36,207.95867074]
[1741594862571,0.063,128.4,128.39,37.99697074]
[1741594864168,0.063,128.4,128.39,45.78567074]
[1741594864774,0.0192,128.4,128.39,37.99697074]
[1741594865876,0.0192,128.4,128.39,45.78567074]
[1741594866192,0.0192,128.4,128.39,83.78264148]
[1741594866486,0.0192,128.4,128.39,85.29494148]
[1741594866687,0.063,128.45,128.39,85.29494148]
[1741594866877,0.063,128.45,128.44,37.99697074]
[1741594869581,0.063,128.45,128.44,45.78267074]
[1741594869783,36.08689357,128.49,128.44,85.32624148]
[1741594869988,0.063,128.49,128.48,37.99697074]
[1741594870322,0.063,128.49,128.48,198.57617074]
[1741594870672,0.063,128.49,128.48,206.35947074]
[1741594871592,0.063,128.49,128.48,208.01077074]
[1741594872098,0.063,128.5,128.48,210.01077074]
[1741594872269,0.03,128.52,128.51,20.0]
[1741594872470,0.03,128.52,128.51,250.49394148]
[1741594872778,0.03,128.52,128.51,265.23534148]
[1741594873175,0.03,128.52,128.51,192.49697074]
[1741594873372,0.03,128.52,128.51,238.27534148]
[1741594873897,0.03,128.52,128.51,200.27837074]
[1741594874697,0.03,128.52,128.51,192.49697074]
[1741594875088,0.03,128.52,128.51,37.99697074]
[1741594875297,0.03,128.52,128.48,89.2305]
[1741594875495,0.03,128.52,128.49,37.99697074]
[1741594875806,0.03,128.52,128.5,37.99697074]
[1741594876184,0.03,128.52,128.49,37.99697074]
[1741594876501,0.03,128.52,128.5,37.99697074]
[1741594878312,0.14216157,128.49,128.44,6.1945]
[1741594878497,7.0,128.48,128.43,81.5]
[1741594878684,7.0,128.48,128.44,37.99697074]
[1741594878885,7.14216157,128.49,128.45,37.99697074]
[1741594879182,7.14216157,128.49,128.44,37.99697074]
[1741594879183,0.14216157,128.47,128.44,37.99697074]
[1741594879386,0.14216157,128.47,128.43,37.99697074]
[1741594880386,82.4,128.5,128.46,37.99697074]
[1741594880592,7.16216157,128.49,128.46,37.99697074]
[1741594881107,14.94486157,128.49,128.45,37.99697074]
[1741594882409,7.16216157,128.49,128.45,37.99697074]
[1741594882615,7.16216157,128.49,128.47,37.99697074]
[1741594882912,7.16216157,128.49,128.46,37.99697074]
[1741594883107,0.14216157,128.49,128.46,37.99697074]
[1741594885707,0.14216157,128.49,128.46,45.78147074]
[1741594886090,0.14216157,128.51,128.48,37.99697074]
[1741594886298,0.14216157,128.51,128.47,37.99697074]
[1741594886494,37.99697074,128.48,128.46,81.5]
[1741594886790,0.14216157,128.47,128.46,81.5]
[1741594887300,7.92546157,128.48,128.46,81.5]
[1741594887503,64.57208117,128.48,128.46,81.5]
[1741594888605,0.14216157,128.48,128.46,81.5]
[1741594888798,18.79181043,128.51,128.47,37.99697074]
[1741594889005,0.14216157,128.51,128.49,37.99697074]
[1741594889392,0.14216157,128.51,128.46,200.28137074]
[1741594889393,0.03,128.52,128.5,37.99697074]
[1741594889995,0.03,128.52,128.51,37.99697074]
[1741594890302,0.03,128.52,128.51,192.49697074]
[1741594891717,0.03,128.52,128.51,200.27837074]
[1741594892220,0.03,128.52,128.51,238.27534148]
[1741594892518,0.03,128.52,128.51,200.27837074]
[1741594895217,0.03,128.52,128.51,238.27534148]
[1741594895602,0.03,128.52,128.51,200.27837074]
[1741594895800,0.03,128.52,128.51,238.27534148]
[1741594896119,0.03,128.52,128.51,200.27837074]
[1741594897802,0.03,128.52,128.51,207.29837074]
[1741594898425,0.03,128.52,128.51,154.5]
[1741594898593,58.02697074,128.52,128.51,154.5]
[1741594898794,96.49554148,128.52,128.51,146.49639156]
[1741594898997,58.49857074,128.52,128.51,45.50458963]
[1741594899205,27.5616,128.52,128.51,45.50458963]
[1741594899405,65.08697074,128.52,128.51,45.50458963]
[1741594899614,58.02697074,128.52,128.51,45.50458963]
[1741594899809,27.09,128.52,128.51,45.50458963]
[1741594900416,20.03,128.52,128.51,45.50458963]
[1741594900607,27.09,128.52,128.51,45.50458963]
[1741594901011,65.08697074,128.52,128.51,45.50458963]
[1741594901423,18.933972,128.51,128.5,0.063]
[1741594901615,18.933972,128.47,128.46,1.16683426]
[1741594901822,18.933972,128.45,128.44,0.063]
[1741594902001,18.79181043,128.45,128.44,0.063]
[1741594902202,26.719072,128.45,128.44,0.063]
[1741594903113,64.71604274,128.45,128.44,0.063]
[1741594903319,26.719072,128.45,128.44,0.063]
[1741594903619,64.71604274,128.45,128.44,0.063]
[1741594903826,26.719072,128.45,128.44,0.063]
[1741594904030,64.57388117,128.45,128.44,0.063]
[1741594904213,64.71604274,128.45,128.44,0.063]
[1741594904524,18.933972,128.44,128.4,1.16708452]
[1741594904727,18.933972,128.4,128.38,1.16722801]
[1741594905416,56.78878117,128.39,128.38,1.16722801]
[1741594905727,64.57748117,128.39,128.38,1.16722801]
[1741594906412,0.14216157,128.39,128.38,1.16722801]
[1741594906816,7.1,128.41,128.38,39.16419875]
[1741594907026,0.14216157,128.42,128.39,37.99697074]
[1741594907322,38.13913231,128.42,128.4,1.16715854]
[1741594907522,0.14216157,128.42,128.4,1.16715854]
[1741594907726,38.13913231,128.42,128.4,1.16715854]
[1741594908411,56.78878117,128.41,128.4,1.16715854]
[1741594908611,56.93094274,128.41,128.4,1.16715854]
[1741594909021,56.78878117,128.41,128.4,1.16715854]
[1741594909518,18.79181043,128.41,128.4,1.16715854]
[1741594909819,56.78878117,128.41,128.4,1.16715854]
[1741594910019,64.57628117,128.41,128.4,1.16715854]
[1741594910539,26.57931043,128.41,128.4,1.16715854]
[1741594910721,64.57628117,128.41,128.4,1.16715854]
[1741594911024,64.71844274,128.41,128.4,1.16715854]
[1741594912238,0.28432314,128.38,128.37,0.063]
[1741594912529,64.03094274,128.38,128.37,0.063]
[1741594913712,56.93094274,128.38,128.37,0.063]
[1741594913916,18.79181043,128.38,128.37,0.063]
[1741594914131,56.78878117,128.38,128.37,0.063]
[1741594914511,64.72024274,128.38,128.37,0.063]
[1741594915345,65.92103538,128.38,128.37,0.063]
[1741594915527,65.92103538,128.38,128.31,0.03]
[1741594915528,18.933972,128.34,128.31,0.03]
[1741594915736,38.28129388,128.32,128.31,0.03]
[1741594915915,38.13913231,128.32,128.31,0.03]
[1741594916120,38.28129388,128.32,128.31,0.03]
[1741594916325,56.78878117,128.32,128.31,0.03]
[1741594918047,38.13913231,128.32,128.31,0.03]
[1741594919148,0.14216157,128.32,128.31,0.03]
[1741594919868,39.19776338,128.35,128.31,0.03]
[1741594920074,0.14216157,128.34,128.31,0.03]
[1741594920575,37.99697074,128.36,128.31,38.02697074]
[1741594920787,18.79181043,128.36,128.33,37.99697074]
[1741594921072,37.99697074,128.34,128.31,0.03]
[1741594921769,0.14216157,128.33,128.31,0.03]
[1741594921946,37.99697074,128.34,128.31,0.03]
[1741594922474,0.14216157,128.35,128.31,0.03]
[1741594922475,38.13913231,128.35,128.31,0.03]
[1741594922655,0.14216157,128.36,128.32,37.99697074]
[1741594922961,0.14216157,128.34,128.31,0.03]
[1741594923137,37.99697074,128.34,128.31,0.03]
[1741594923554,0.14216157,128.35,128.31,0.03]
[1741594923951,56.78878117,128.33,128.31,0.03]
[1741594924266,56.6466196,128.32,128.31,0.03]
[1741594924468,57.84741224,128.32,128.31,0.03]
[1741594924647,56.6466196,128.32,128.31,0.03]
[1741594924843,37.99697074,128.33,128.31,0.03]
[1741594925053,18.79181043,128.33,128.31,0.03]
[1741594925254,57.98957381,128.33,128.31,0.03]
[1741594925561,56.6466196,128.32,128.31,0.03]
[1741594927064,18.79181043,128.34,128.31,0.03]
[1741594928054,56.78878117,128.34,128.31,0.03]
[1741594929144,56.6466196,128.32,128.31,0.03]
[1741594929347,63.7466196,128.32,128.31,0.03]
[1741594929566,64.03094274,128.32,128.31,0.03]
[1741594929968,63.88878117,128.32,128.31,0.03]
[1741594932271,25.89181043,128.32,128.31,0.03]
[1741594932563,7.24216157,128.32,128.31,0.03]
[1741594933054,25.89181043,128.32,128.31,0.03]
[1741594933259,65.23173538,128.32,128.31,0.03]
[1741594934062,71.82394274,128.32,128.31,0.03]
[1741594934276,154.22394274,128.32,128.31,0.03]
[1741594935051,139.33094274,128.32,128.31,0.03]
[1741594935688,147.12394274,128.32,128.31,0.03]
[1741594936565,18.79181043,128.28,128.27,0.03]
[1741594936765,57.98957381,128.28,128.27,0.03]
[1741594937684,103.92410612,128.28,128.27,0.03]
[1741594938083,105.92410612,128.28,128.27,0.03]
[1741594938374,105.92410612,128.28,128.25,0.03]
[1741594938375,38.933972,128.26,128.25,0.03]
[1741594938550,78.13173538,128.26,128.25,0.03]
[1741594938947,28.731772,128.24,128.23,0.03]
[1741594939146,101.333972,128.23,128.22,0.063]
[1741594939384,94.92791348,128.22,128.18,0.063]
[1741594939556,281.84870612,128.22,128.18,0.063]
[1741594939756,280.64791348,128.22,128.18,0.063]
[1741594940368,58.93094274,128.21,128.18,0.063]
[1741594940566,140.53173538,128.2,128.18,0.063]
[1741594941175,65.93203538,128.2,128.18,0.063]
[1741594942976,58.13173538,128.2,128.18,0.063]
[1741594943963,39.33992495,128.2,128.18,0.063]
[1741594944188,38.13913231,128.2,128.18,0.063]
[1741594944372,0.14216157,128.22,128.18,0.063]
[1741594944572,56.78878117,128.22,128.18,0.063]
[1741594944867,18.79181043,128.22,128.18,0.063]
[1741594945069,37.99697074,128.21,128.18,0.063]
[1741594945466,0.14216157,128.2,128.18,0.063]
[1741594945682,38.13913231,128.2,128.18,0.063]
[1741594945987,0.14216157,128.2,128.18,0.063]
[1741594946291,56.93094274,128.2,128.18,0.063]
[1741594946469,56.78878117,128.2,128.18,0.063]
[1741594946868,56.93094274,128.2,128.18,0.063]
[1741594947072,73.13203538,128.2,128.18,0.063]
[1741594948089,155.53203538,128.2,128.18,0.063]
[1741594948383,154.33124274,128.2,128.18,0.063]
[1741594949183,71.93124274,128.2,128.18,0.063]
[1741594949389,73.13203538,128.2,128.18,0.063]
[1741594949883,65.33173538,128.2,128.18,0.063]
[1741594950094,63.98878117,128.2,128.18,0.063]
[1741594950782,18.79181043,128.2,128.18,0.063]
[1741594950986,56.78878117,128.2,128.18,0.063]
[1741594951501,7.18,128.21,128.18,0.063]
[1741594951671,7.18,128.21,128.2,1.5287]
[1741594951872,0.14216157,128.22,128.2,1.5287]
[1741594953079,38.13913231,128.22,128.2,1.5287]
[1741594953280,57.84741224,128.21,128.2,1.5287]
[1741594953599,56.6466196,128.21,128.2,1.5287]
[1741594953771,0.28432314,128.2,128.19,0.063]
[1741594953974,64.11094274,128.2,128.19,0.063]
[1741594954483,101.333972,128.19,128.18,0.063]
[1741594954671,140.53173538,128.19,128.18,0.063]
[1741594954875,140.53173538,128.19,128.18,0.0001]
[1741594955069,140.53173538,128.19,128.14,0.03]
[1741594955070,20.28432314,128.15,128.14,0.03]
[1741594955281,101.333972,128.14,128.13,0.03]
[1741594955473,0.28432314,128.13,128.12,0.03]
[1741594955675,18.79181043,128.09,128.03,8.2172]
[1741594955988,37.99697074,128.07,128.03,8.2172]
[1741594956188,7.32216157,128.08,128.07,0.03]
[1741594957072,25.97181043,128.08,128.07,0.03]
[1741594957284,63.96878117,128.08,128.07,0.03]
[1741594957679,64.11094274,128.08,128.07,0.03]
[1741594957884,20.28432314,128.04,128.01,2.7101072]
[1741594958086,56.93094274,128.02,128.01,2.7101072]
[1741594958690,58.13173538,128.02,128.01,2.7101072]
[1741594959197,65.94293538,128.02,128.01,2.7101072]
[1741594959984,65.94293538,128.02,127.98,1.05955868]
[1741594959985,38.933972,127.99,127.98,1.05955868]
[1741594960182,78.13173538,127.99,127.98,1.05955868]
[1741594960884,116.12870612,127.99,127.98,1.05955868]
[1741594961282,0.28432314,127.94,127.9,1.5196]
[1741594961492,7.22,127.93,127.9,9.338]
[1741594962081,0.14216157,127.92,127.9,1.5196]
[1741594962291,7.22,127.93,127.9,1.5196]
[1741594962489,0.14216157,127.92,127.9,1.5196]
[1741594962699,38.13913231,127.91,127.9,1.5196]
[1741594962876,0.14216157,127.89,127.85,6.1183]
[1741594963221,18.79181043,127.87,127.85,6.1183]
[1741594963507,57.98957381,127.87,127.83,1.6498]
[1741594963803,0.14216157,127.84,127.83,1.6498]
[1741594964188,7.38216157,127.88,127.83,1.6498]
[1741594964189,8.58295421,127.88,127.83,1.6498]
[1741594964393,0.14216157,127.87,127.83,47.46937074]
[1741594964587,18.79181043,127.87,127.83,9.4724]
[1741594964790,0.14216157,127.87,127.83,47.46957074]
[1741594965011,1.20079264,127.86,127.83,1.6498]
[1741594965197,38.79181043,127.85,127.83,1.6498]
[1741594965723,0.14216157,127.83,127.81,6.3066]
[1741594965904,0.14216157,127.83,127.78,123.9876]
[1741594965905,26.05181043,127.83,127.79,7.8251]
[1741594966212,26.05181043,127.83,127.78,121.08457074]
[1741594966213,0.14216157,127.81,127.78,9.4134]
[1741594966384,56.78878117,127.81,127.78,9.4134]
[1741594966584,18.79181043,127.79,127.75,2.7101072]
[1741594966890,7.3,127.78,127.76,45.82407074]
[1741594967094,7.3,127.78,127.76,45.32407074]
[1741594967498,0.14216157,127.81,127.77,37.99697074]
[1741594967695,82.4,127.82,127.79,37.99697074]
[1741594967942,82.4,127.93,127.82,8.1667]
[1741594968100,1.20079264,127.92,127.87,37.99697074]
[1741594968305,18.79181043,127.89,127.82,137.9267]
[1741594968487,18.79181043,127.89,127.85,37.99697074]
[1741594968488,19.99260307,127.89,127.85,37.99697074]
[1741594968819,18.933972,127.9,127.82,130.5667]
[1741594968992,18.79181043,127.9,127.85,37.99697074]
[1741594969204,1.20079264,127.94,127.89,37.99697074]
[1741594969412,1.20079264,127.96,127.92,37.99697074]
[1741594969910,1.20079264,127.96,127.91,7.8179]
[1741594969911,0.14216157,127.92,127.91,7.8179]
[1741594970125,0.14216157,127.92,127.88,45.81677074]
[1741594970321,1.34295421,127.92,127.88,65.20602631]
[1741594970502,0.14216157,127.92,127.89,57.38622631]
[1741594971003,0.14216157,127.92,127.88,65.20602631]
[1741594971627,0.14216157,127.92,127.89,57.38622631]
[1741594971811,0.14216157,127.92,127.9,57.38622631]
[1741594972410,1.20079264,127.94,127.91,57.38622631]
[1741594972717,18.79181043,127.93,127.9,57.38622631]
[1741594973406,0.14216157,127.9,127.87,7.8202]
[1741594973618,58.72918052,127.9,127.87,7.8202]
[1741594973911,0.14216157,127.88,127.86,7.821]
[1741594974111,1.34295421,127.88,127.84,7.8222]
[1741594974327,0.14216157,127.88,127.85,57.38622631]
[1741594974522,76.17803674,127.88,127.84,7.8222]
[1741594974704,0.14216157,127.87,127.84,7.8222]
[1741594974908,18.933972,127.87,127.84,7.8222]
[1741594975233,27.53476464,127.87,127.83,0.03]
[1741594975407,84.92099095,127.87,127.83,0.03]
[1741594975742,84.92099095,127.87,127.83,65.23892631]
[1741594975743,27.39260307,127.87,127.83,65.23892631]
[1741594976035,76.17803674,127.89,127.84,57.38622631]
[1741594976238,0.14216157,127.87,127.83,65.23892631]
[1741594976526,0.14216157,127.87,127.83,7.8527]
[1741594976824,0.14216157,127.86,127.83,65.23892631]
[1741594977018,0.14216157,127.86,127.83,7.8527]
[1741594977323,1.34295421,127.86,127.83,0.03]
[1741594977511,0.14216157,127.84,127.83,0.03]
[1741594978816,1.20079264,127.89,127.83,57.41622631]
[1741594979006,18.79181043,127.88,127.85,57.38622631]
[1741594979313,18.79181043,127.88,127.83,0.03]
[1741594979314,0.14216157,127.88,127.86,57.38622631]
[1741594979516,0.14216157,127.89,127.88,7.8198]
[1741594979813,0.14216157,127.9,127.88,65.20602631]
[1741594980018,7.8159,127.95,127.89,57.38622631]
[1741594980019,0.28432314,127.95,127.89,57.38622631]
[1741594980215,1.34295421,127.95,127.92,57.38622631]
[1741594980421,0.14216157,127.95,127.94,57.38622631]
[1741594980625,1.20079264,127.98,127.94,57.38622631]
[1741594980831,1.20079264,127.98,127.89,129.84]
[1741594980832,0.14216157,127.97,127.93,57.38622631]
[1741594981035,57.38622631,127.96,127.91,57.38622631]
[1741594981326,18.79181043,127.96,127.92,57.38622631]
[1741594981832,0.14216157,127.94,127.92,57.38622631]
[1741594982016,19.8504415,127.96,127.93,57.38622631]
[1741594982207,0.14216157,127.95,127.92,57.38622631]
[1741594982409,0.14216157,127.96,127.94,57.38622631]
[1741594982610,18.79181043,127.96,127.92,57.38622631]
[1741594982818,0.14216157,127.96,127.94,57.38622631]
[1741594983023,0.14216157,127.96,127.93,57.38622631]
[1741594983228,0.28432314,127.96,127.91,181.42452631]
[1741594983431,0.14216157,127.94,127.91,59.02452631]
[1741594983903,0.14216157,127.94,127.91,66.84202631]
[1741594984225,0.14216157,127.94,127.89,101.048]
[1741594984226,1.20079264,127.93,127.89,7.819]
[1741594984421,1.20079264,127.93,127.9,57.38622631]
[1741594984727,0.14216157,127.94,127.91,57.38622631]
[1741594985222,18.933972,127.94,127.91,57.38622631]
[1741594985438,0.14216157,127.94,127.91,57.38622631]
[1741594985642,83.60079264,127.95,127.92,57.38622631]
[1741594985930,82.4,128.0,127.94,57.38622631]
[1741594986119,0.14216157,127.99,127.96,57.38622631]
[1741594986423,18.933972,127.99,127.94,57.38622631]
[1741594986629,18.933972,127.99,127.92,122.4]
[1741594986630,18.933972,127.97,127.92,122.4]
[1741594986836,18.933972,127.97,127.92,57.38622631]
[1741594987037,18.79181043,127.97,127.92,57.38622631]
[1741594987224,18.79181043,127.97,127.93,57.38622631]
[1741594987929,0.14216157,127.99,127.96,57.38622631]
[1741594988119,18.79181043,128.0,127.96,57.38622631]
[1741594989033,77.37882938,127.99,127.94,1.5951]
[1741594989443,18.64964886,127.97,127.94,1.5951]
[1741594989627,19.8504415,127.97,127.94,1.5951]
[1741594989939,1.20079264,127.97,127.94,9.4107]
[1741594990115,1.34295421,127.98,127.94,66.79692631]
[1741594990313,1.34295421,127.98,127.94,9.4107]
[1741594990515,1.34295421,127.98,127.94,58.98132631]
[1741594990822,1.34295421,127.98,127.94,66.79742631]